[Event "*** Titled Tuesday Blitz"]
[Site "Chess.com"]
[Date "2020.05.12"]
[Round "7"]
[White "chessablanca"]
[Black "Susal_De_Silva"]
[Result "0-1"]
[WhiteElo "2460"]
[BlackElo "2279"]
[TimeControl "180+1"]
[EndTime "11:15:04 PDT"]
[Termination "Susal_De_Silva won by resignation"]

1. g3 {[%clk 0:02:56.8]} 1... Nf6 {[%clk 0:02:59.4]} 2. Bg2 {[%clk 0:02:57]}
2... d5 {[%clk 0:03:00.1]} 3. Nf3 {[%clk 0:02:57.2]} 3... b6 {[%clk 0:03:00.2]}
4. O-O {[%clk 0:02:57.7]} 4... Bb7 {[%clk 0:03:00.8]} 5. d3 {[%clk 0:02:57.7]}
5... e6 {[%clk 0:02:58.4]} 6. Nbd2 {[%clk 0:02:57.7]} 6... Nbd7 {[%clk
0:02:57.5]} 7. b3 {[%clk 0:02:57.9]} 7... Be7 {[%clk 0:02:57.1]} 8. Bb2 {[%clk
0:02:58.5]} 8... O-O {[%clk 0:02:57.6]} 9. Re1 {[%clk 0:02:58.7]} 9... c5 {[%clk
0:02:55.2]} 10. e4 {[%clk 0:02:57.8]} 10... dxe4 {[%clk 0:02:55]} 11. dxe4
{[%clk 0:02:58.7]} 11... Qc7 {[%clk 0:02:54.2]} 12. e5 {[%clk 0:02:51.7]} 12...
Nd5 {[%clk 0:02:53.1]} 13. c4 {[%clk 0:02:40.2]} 13... Nb4 {[%clk 0:02:51.9]}
14. Qb1 {[%clk 0:02:32.7]} 14... Rfd8 {[%clk 0:02:42.4]} 15. a3 {[%clk
0:02:27.9]} 15... Nc6 {[%clk 0:02:41.2]} 16. Bc3 {[%clk 0:02:20.3]} 16... Nf8
{[%clk 0:02:39.9]} 17. Qb2 {[%clk 0:02:16.9]} 17... Rd7 {[%clk 0:02:34.9]} 18.
Ne4 {[%clk 0:01:57.6]} 18... Rad8 {[%clk 0:02:31.2]} 19. Nd6 {[%clk 0:01:49]}
19... Ba8 {[%clk 0:02:13.5]} 20. Rad1 {[%clk 0:01:44]} 20... Ng6 {[%clk
0:02:09.7]} 21. Nxf7 {[%clk 0:01:19.7]} 21... Kxf7 {[%clk 0:01:52.3]} 22. Rxd7
{[%clk 0:01:18.9]} 22... Qxd7 {[%clk 0:01:48.9]} 23. h4 {[%clk 0:01:18.9]} 23...
Nd4 {[%clk 0:01:48.3]} 24. Bxd4 {[%clk 0:01:11.1]} 24... Bxf3 {[%clk 0:01:39.5]}
25. Be3 {[%clk 0:01:07.4]} 25... Bxg2 {[%clk 0:01:35.4]} 26. Kxg2 {[%clk
0:01:08.3]} 26... Qc6+ {[%clk 0:01:33]} 27. Kh3 {[%clk 0:01:07.1]} 27... Qf3
{[%clk 0:01:30.7]} 28. Qc2 {[%clk 0:00:51.7]} 28... Nxh4 {[%clk 0:01:18.4]} 29.
Rg1 {[%clk 0:00:47.9]} 29... Qf5+ {[%clk 0:01:10.5]} 30. Qxf5+ {[%clk
0:00:47.4]} 30... Nxf5 {[%clk 0:01:11.4]} 31. Bf4 {[%clk 0:00:47.5]} 31... g5
{[%clk 0:01:08.3]} 32. Bc1 {[%clk 0:00:45.9]} 32... Rd3 {[%clk 0:01:07.9]} 33.
Kg4 {[%clk 0:00:44]} 33... Kg6 {[%clk 0:01:06.8]} 34. Rh1 {[%clk 0:00:43.7]} 0-1

[Event "*** Titled Tuesday Blitz"]
[Site "Chess.com"]
[Date "2020.05.12"]
[Round "7"]
[White "MoreChessJulia"]
[Black "madalin18"]
[Result "1-0"]
[WhiteElo "1800"]
[BlackElo "2167"]
[TimeControl "180+1"]
[EndTime "11:15:05 PDT"]
[Termination "MoreChessJulia won by resignation"]

1. d4 {[%clk 0:03:00.4]} 1... Nf6 {[%clk 0:02:59.7]} 2. c4 {[%clk 0:02:58.3]}
2... g6 {[%clk 0:02:59.6]} 3. f3 {[%clk 0:02:57.9]} 3... d5 {[%clk 0:02:58.2]}
4. cxd5 {[%clk 0:02:57]} 4... Nxd5 {[%clk 0:02:57.9]} 5. e4 {[%clk 0:02:57.6]}
5... Nb6 {[%clk 0:02:57.8]} 6. Nc3 {[%clk 0:02:58.1]} 6... Bg7 {[%clk
0:02:57.6]} 7. Be3 {[%clk 0:02:57.4]} 7... O-O {[%clk 0:02:55.9]} 8. a4 {[%clk
0:02:57.2]} 8... Nc6 {[%clk 0:02:53]} 9. a5 {[%clk 0:02:56]} 9... Nd7 {[%clk
0:02:52.7]} 10. Bc4 {[%clk 0:02:51.8]} 10... a6 {[%clk 0:02:43.5]} 11. Nge2
{[%clk 0:02:51.3]} 11... Nf6 {[%clk 0:02:42.9]} 12. O-O {[%clk 0:02:50.3]} 12...
Bd7 {[%clk 0:02:37.7]} 13. g4 {[%clk 0:02:49.3]} 13... Bc8 {[%clk 0:02:36.2]}
14. e5 {[%clk 0:02:47.9]} 14... Ne8 {[%clk 0:02:28.8]} 15. e6 {[%clk 0:02:46.4]}
15... Bxe6 {[%clk 0:02:25.7]} 16. Bxe6 {[%clk 0:02:45.7]} 16... fxe6 {[%clk
0:02:25.5]} 17. Qb3 {[%clk 0:02:45]} 17... Nxd4 {[%clk 0:02:17]} 18. Nxd4 {[%clk
0:02:43.3]} 18... Bxd4 {[%clk 0:02:17.3]} 19. Qxe6+ {[%clk 0:02:42.9]} 19... Kh8
{[%clk 0:02:13.6]} 20. Rad1 {[%clk 0:02:38.3]} 20... Bxe3+ {[%clk 0:02:13.4]}
21. Qxe3 {[%clk 0:02:37.6]} 21... Nd6 {[%clk 0:02:13.8]} 22. Qe5+ {[%clk
0:02:34.6]} 22... Kg8 {[%clk 0:02:12]} 23. Nd5 {[%clk 0:02:34.2]} 23... Rf7
{[%clk 0:02:07.9]} 24. Rde1 {[%clk 0:02:32.8]} 24... e6 {[%clk 0:01:13.3]} 25.
Qxe6 {[%clk 0:02:28.5]} 25... Qf8 {[%clk 0:01:13.2]} 26. Nf6+ {[%clk 0:02:21.3]}
26... Kg7 {[%clk 0:01:13.1]} 27. g5 {[%clk 0:02:18.1]} 27... Nf5 {[%clk
0:01:07.7]} 28. Qe5 {[%clk 0:02:16.7]} 28... Rxf6 {[%clk 0:00:40.5]} 29. gxf6+
{[%clk 0:02:09.9]} 29... Qxf6 {[%clk 0:00:41]} 30. Qxc7+ {[%clk 0:02:05.7]}
30... Kh6 {[%clk 0:00:39.1]} 31. Re4 {[%clk 0:01:56.8]} 31... Rd8 {[%clk
0:00:35.2]} 32. Qe5 {[%clk 0:01:51]} 32... Qg5+ {[%clk 0:00:31.1]} 33. Rg4
{[%clk 0:01:49.2]} 33... Qh5 {[%clk 0:00:20.6]} 34. Qf4+ {[%clk 0:01:45.9]}
34... g5 {[%clk 0:00:20.5]} 35. Qxf5 {[%clk 0:01:45]} 35... Rd2 {[%clk
0:00:20.6]} 36. Qf6+ {[%clk 0:01:44.3]} 36... Qg6 {[%clk 0:00:20.9]} 37. Qxg6+
{[%clk 0:01:44.2]} 37... Kxg6 {[%clk 0:00:20.1]} 38. Rf2 {[%clk 0:01:44.5]} 1-0

[Event "*** Titled Tuesday Blitz"]
[Site "Chess.com"]
[Date "2020.05.12"]
[Round "7"]
[White "LiemLe"]
[Black "Firehand33"]
[Result "1-0"]
[WhiteElo "2957"]
[BlackElo "2728"]
[TimeControl "180+1"]
[EndTime "11:15:06 PDT"]
[Termination "LiemLe won by resignation"]

1. Nf3 {[%clk 0:03:00.9]} 1... d5 {[%clk 0:02:58.8]} 2. e3 {[%clk 0:03:00.8]}
2... Nf6 {[%clk 0:02:57.3]} 3. c4 {[%clk 0:03:00.7]} 3... e6 {[%clk 0:02:57.2]}
4. Nc3 {[%clk 0:03:00.6]} 4... Be7 {[%clk 0:02:50.5]} 5. b3 {[%clk 0:03:00.4]}
5... O-O {[%clk 0:02:49.3]} 6. Bb2 {[%clk 0:03:00.9]} 6... b6 {[%clk 0:02:43.9]}
7. cxd5 {[%clk 0:02:43]} 7... exd5 {[%clk 0:02:39.7]} 8. d4 {[%clk 0:02:42.7]}
8... Bb7 {[%clk 0:02:39.5]} 9. Bd3 {[%clk 0:02:41.2]} 9... Nbd7 {[%clk
0:02:39.2]} 10. O-O {[%clk 0:02:40.9]} 10... a6 {[%clk 0:02:32.9]} 11. Rc1
{[%clk 0:02:40.3]} 11... Bd6 {[%clk 0:02:32.8]} 12. Ne2 {[%clk 0:02:25.2]} 12...
Re8 {[%clk 0:02:20.4]} 13. Qc2 {[%clk 0:02:12.9]} 13... Ne4 {[%clk 0:02:15.6]}
14. Ne5 {[%clk 0:02:09.1]} 14... Bxe5 {[%clk 0:01:56.2]} 15. dxe5 {[%clk
0:02:10]} 15... Ndc5 {[%clk 0:01:55.9]} 16. Rfd1 {[%clk 0:01:48]} 16... Nxd3
{[%clk 0:01:47.7]} 17. Rxd3 {[%clk 0:01:48.9]} 17... Nc5 {[%clk 0:01:25.1]} 18.
Rd2 {[%clk 0:01:47.5]} 18... Qg5 {[%clk 0:01:14.6]} 19. Nf4 {[%clk 0:01:40.3]}
19... Rac8 {[%clk 0:01:08.8]} 20. Nxd5 {[%clk 0:01:33.8]} 20... Ne6 {[%clk
0:00:58.4]} 21. Rcd1 {[%clk 0:01:27.4]} 21... c5 {[%clk 0:00:55.1]} 22. f4
{[%clk 0:01:13.8]} 22... Qg4 {[%clk 0:00:52.4]} 23. Nxb6 {[%clk 0:01:13.7]}
23... Rc6 {[%clk 0:00:43.6]} 24. Nc4 {[%clk 0:01:12.4]} 24... Ba8 {[%clk
0:00:37.8]} 25. Nd6 {[%clk 0:01:03.9]} 25... Rf8 {[%clk 0:00:37]} 26. h3 {[%clk
0:00:57.9]} 26... Qg3 {[%clk 0:00:36.5]} 27. Nf5 {[%clk 0:00:57.7]} 27... Nd4
{[%clk 0:00:30.5]} 28. Nxg3 {[%clk 0:00:56.7]} 28... Nxc2 {[%clk 0:00:30.4]} 29.
Rxc2 {[%clk 0:00:57.6]} 1-0

[Event "*** Titled Tuesday Blitz"]
[Site "Chess.com"]
[Date "2020.05.12"]
[Round "7"]
[White "Mfcyryd"]
[Black "Funo09"]
[Result "1-0"]
[WhiteElo "2589"]
[BlackElo "2715"]
[TimeControl "180+1"]
[EndTime "11:15:12 PDT"]
[Termination "Mfcyryd won by resignation"]

1. e4 {[%clk 0:03:00.9]} 1... c5 {[%clk 0:02:59.7]} 2. Nf3 {[%clk 0:03:00.8]}
2... Nf6 {[%clk 0:03:00.1]} 3. d4 {[%clk 0:03:01.7]} 3... Nxe4 {[%clk
0:03:00.2]} 4. Bd3 {[%clk 0:02:49.1]} 4... d5 {[%clk 0:02:59.5]} 5. O-O {[%clk
0:02:48.3]} 5... Nc6 {[%clk 0:03:00]} 6. c3 {[%clk 0:02:37.9]} 6... Bg4 {[%clk
0:03:00.1]} 7. h3 {[%clk 0:02:31]} 7... Bh5 {[%clk 0:03:00.6]} 8. Qb3 {[%clk
0:02:29.3]} 8... Rb8 {[%clk 0:02:32.6]} 9. Bxe4 {[%clk 0:02:26.6]} 9... dxe4
{[%clk 0:02:33.5]} 10. Ne5 {[%clk 0:02:23.2]} 10... Nxe5 {[%clk 0:02:19.5]} 11.
dxe5 {[%clk 0:02:24.1]} 11... e6 {[%clk 0:02:20.3]} 12. Be3 {[%clk 0:02:19.5]}
12... Be7 {[%clk 0:02:09.3]} 13. Qa4+ {[%clk 0:02:19]} 13... b5 {[%clk
0:02:06.6]} 14. Qxe4 {[%clk 0:02:19.1]} 14... O-O {[%clk 0:02:05.8]} 15. Nd2
{[%clk 0:02:13.2]} 15... Bg6 {[%clk 0:02:05.7]} 16. Qf3 {[%clk 0:02:10.9]} 16...
a5 {[%clk 0:02:00.2]} 17. Ne4 {[%clk 0:02:07.4]} 17... Qd5 {[%clk 0:01:57]} 18.
Nxc5 {[%clk 0:02:01]} 18... Qxf3 {[%clk 0:01:56]} 19. gxf3 {[%clk 0:02:01.9]}
19... Rfd8 {[%clk 0:01:51.9]} 20. Rfd1 {[%clk 0:01:59.3]} 20... a4 {[%clk
0:01:50.8]} 21. Kf1 {[%clk 0:01:52.6]} 21... Bc2 {[%clk 0:01:48.4]} 22. Rxd8+
{[%clk 0:01:44]} 22... Rxd8 {[%clk 0:01:49.3]} 23. Rc1 {[%clk 0:01:44.1]} 23...
Bf5 {[%clk 0:01:45.5]} 24. Kg2 {[%clk 0:01:42.6]} 24... Rd5 {[%clk 0:01:45.3]}
25. c4 {[%clk 0:01:23.9]} 25... bxc4 {[%clk 0:01:46.2]} 26. Rxc4 {[%clk
0:01:21.5]} 26... h6 {[%clk 0:01:40.7]} 27. Nxa4 {[%clk 0:01:18.8]} 27... Rxe5
{[%clk 0:01:40.5]} 28. b4 {[%clk 0:01:15.4]} 28... Bb1 {[%clk 0:01:36]} 29. Nc3
{[%clk 0:01:12]} 29... Bd3 {[%clk 0:01:34.8]} 30. Rd4 {[%clk 0:01:09.8]} 30...
Ba6 {[%clk 0:01:34.6]} 31. a4 {[%clk 0:01:06.8]} 31... Rf5 {[%clk 0:01:30.9]}
32. b5 {[%clk 0:01:03.5]} 32... Bb7 {[%clk 0:01:31]} 33. Ne4 {[%clk 0:01:01.1]}
33... Ba3 {[%clk 0:01:20.3]} 34. Rd7 {[%clk 0:00:59.1]} 34... Bd5 {[%clk
0:01:15.1]} 35. b6 {[%clk 0:00:56.9]} 35... Bc6 {[%clk 0:01:10.8]} 36. Rc7
{[%clk 0:00:48.6]} 36... Bxa4 {[%clk 0:01:08.9]} 37. b7 {[%clk 0:00:48.5]} 37...
Rb5 {[%clk 0:01:09]} 38. Rc8+ {[%clk 0:00:48.6]} 38... Kh7 {[%clk 0:01:08.8]}
39. b8=Q {[%clk 0:00:49.5]} 39... Rxb8 {[%clk 0:01:08.4]} 40. Rxb8 {[%clk
0:00:49.7]} 40... Be7 {[%clk 0:01:08.1]} 41. Rb7 {[%clk 0:00:49]} 41... Bf6
{[%clk 0:01:08.5]} 1-0

[Event "*** Titled Tuesday Blitz"]
[Site "Chess.com"]
[Date "2020.05.12"]
[Round "7"]
[White "politeplayer"]
[Black "Kislov_Oleg"]
[Result "0-1"]
[WhiteElo "2185"]
[BlackElo "2331"]
[TimeControl "180+1"]
[EndTime "11:15:12 PDT"]
[Termination "Kislov_Oleg won by resignation"]

1. e4 {[%clk 0:03:00.9]} 1... e6 {[%clk 0:02:59.1]} 2. d3 {[%clk 0:02:53.4]}
2... d5 {[%clk 0:02:59.1]} 3. Nd2 {[%clk 0:02:51.3]} 3... Nf6 {[%clk 0:02:58.5]}
4. Ngf3 {[%clk 0:02:50.8]} 4... Nc6 {[%clk 0:02:58.2]} 5. g3 {[%clk 0:02:49.2]}
5... Bc5 {[%clk 0:02:57.8]} 6. Bg2 {[%clk 0:02:47.7]} 6... dxe4 {[%clk
0:02:56.2]} 7. dxe4 {[%clk 0:02:46.9]} 7... e5 {[%clk 0:02:56.3]} 8. O-O {[%clk
0:02:45.1]} 8... O-O {[%clk 0:02:55.8]} 9. c3 {[%clk 0:02:29.9]} 9... a5 {[%clk
0:02:54.8]} 10. Nb3 {[%clk 0:02:26.4]} 10... Bb6 {[%clk 0:02:51.7]} 11. Qxd8
{[%clk 0:02:24]} 11... Rxd8 {[%clk 0:02:50.9]} 12. Bg5 {[%clk 0:02:24.6]} 12...
Be6 {[%clk 0:02:44.7]} 13. Bxf6 {[%clk 0:02:21.1]} 13... gxf6 {[%clk 0:02:44.3]}
14. Rad1 {[%clk 0:02:21.5]} 14... a4 {[%clk 0:02:41]} 15. Nc1 {[%clk 0:02:20.9]}
15... Na5 {[%clk 0:02:36]} 16. Nh4 {[%clk 0:02:06.9]} 16... Nc4 {[%clk
0:02:18.5]} 17. Rxd8+ {[%clk 0:02:06]} 17... Rxd8 {[%clk 0:02:17.7]} 18. b3
{[%clk 0:02:06.1]} 18... axb3 {[%clk 0:02:05.8]} 19. axb3 {[%clk 0:02:05.5]}
19... Na5 {[%clk 0:02:05.4]} 20. c4 {[%clk 0:01:35.8]} 20... Rd2 {[%clk
0:01:58.3]} 21. Nf5 {[%clk 0:01:34.3]} 21... Bxf5 {[%clk 0:01:39.7]} 22. exf5
{[%clk 0:01:33.7]} 22... c6 {[%clk 0:01:39.8]} 23. Bf3 {[%clk 0:01:23.9]} 23...
Bd4 {[%clk 0:01:34.8]} 24. Kg2 {[%clk 0:01:21.9]} 24... Kg7 {[%clk 0:01:18.2]}
25. h4 {[%clk 0:01:16.2]} 25... Bb2 {[%clk 0:01:05.2]} 26. b4 {[%clk 0:00:37.6]}
26... Nxc4 {[%clk 0:01:02.6]} 27. Nb3 {[%clk 0:00:37.2]} 27... Ne3+ {[%clk
0:01:01.8]} 28. Kg1 {[%clk 0:00:33.6]} 28... Nxf1 {[%clk 0:01:01.8]} 29. Kxf1
{[%clk 0:00:30.2]} 29... Rd3 {[%clk 0:01:01.4]} 0-1

[Event "*** Titled Tuesday Blitz"]
[Site "Chess.com"]
[Date "2020.05.12"]
[Round "7"]
[White "Godzillator"]
[Black "RianKapriaga"]
[Result "1-0"]
[WhiteElo "2461"]
[BlackElo "2229"]
[TimeControl "180+1"]
[EndTime "11:15:14 PDT"]
[Termination "Godzillator won by resignation"]

1. d4 {[%clk 0:03:00.9]} 1... Nf6 {[%clk 0:02:58.7]} 2. c4 {[%clk 0:03:01.2]}
2... e6 {[%clk 0:02:58.9]} 3. Nc3 {[%clk 0:03:01.7]} 3... Bb4 {[%clk 0:02:59.3]}
4. Qc2 {[%clk 0:03:02.3]} 4... O-O {[%clk 0:02:59]} 5. a3 {[%clk 0:03:02.8]}
5... Bxc3+ {[%clk 0:02:57.1]} 6. Qxc3 {[%clk 0:03:03.5]} 6... d6 {[%clk
0:02:54.3]} 7. Bg5 {[%clk 0:03:03]} 7... Nbd7 {[%clk 0:02:51.8]} 8. e3 {[%clk
0:03:01.8]} 8... b6 {[%clk 0:02:52.1]} 9. Bd3 {[%clk 0:03:00.8]} 9... Bb7 {[%clk
0:02:51.5]} 10. f3 {[%clk 0:03:01.1]} 10... Qe7 {[%clk 0:02:50.5]} 11. Ne2
{[%clk 0:02:59.1]} 11... e5 {[%clk 0:02:50.3]} 12. O-O {[%clk 0:02:46.7]} 12...
h6 {[%clk 0:02:48.8]} 13. Bh4 {[%clk 0:02:44.3]} 13... Rfe8 {[%clk 0:02:41.7]}
14. Bf5 {[%clk 0:02:37.5]} 14... g6 {[%clk 0:02:37.3]} 15. Bxd7 {[%clk
0:02:36.4]} 15... Qxd7 {[%clk 0:02:21.5]} 16. Bxf6 {[%clk 0:02:35.4]} 16... Qf5
{[%clk 0:02:18.9]} 17. dxe5 {[%clk 0:02:28]} 17... dxe5 {[%clk 0:02:18.8]} 18.
Bh4 {[%clk 0:02:27.3]} 18... g5 {[%clk 0:02:18.1]} 19. Bg3 {[%clk 0:02:22.4]}
19... f6 {[%clk 0:02:15.3]} 20. e4 {[%clk 0:02:21.1]} 20... Qe6 {[%clk
0:02:13.9]} 21. Rad1 {[%clk 0:02:18]} 21... Rad8 {[%clk 0:02:11.9]} 22. Bf2
{[%clk 0:02:12.6]} 22... c5 {[%clk 0:02:10.6]} 23. Qc2 {[%clk 0:02:04.5]} 23...
h5 {[%clk 0:02:08.7]} 24. b3 {[%clk 0:02:03.2]} 24... h4 {[%clk 0:02:08.2]} 25.
h3 {[%clk 0:02:02.8]} 25... Kg7 {[%clk 0:01:55]} 26. Nc3 {[%clk 0:02:02.4]}
26... Kh6 {[%clk 0:01:50.7]} 27. Rxd8 {[%clk 0:02:02.1]} 27... Rxd8 {[%clk
0:01:50.3]} 28. Rd1 {[%clk 0:02:02.2]} 28... Rg8 {[%clk 0:01:48.9]} 29. Nd5
{[%clk 0:02:00.2]} 29... Bc8 {[%clk 0:01:48.1]} 30. Qd2 {[%clk 0:01:55]} 30...
Qf7 {[%clk 0:01:43.5]} 31. Kf1 {[%clk 0:01:45.9]} 31... f5 {[%clk 0:01:30.3]}
32. exf5 {[%clk 0:01:44.4]} 32... Bxf5 {[%clk 0:01:29.3]} 33. Ne3 {[%clk
0:01:42.8]} 33... Bxh3 {[%clk 0:01:23.6]} 34. gxh3 {[%clk 0:01:40.7]} 34... Qxf3
{[%clk 0:01:23.2]} 35. Qd6+ {[%clk 0:01:38.9]} 35... Kh5 {[%clk 0:01:21.6]} 36.
Qe6 {[%clk 0:01:36.8]} 36... g4 {[%clk 0:01:04.8]} 37. Qxg8 {[%clk 0:01:31.1]}
37... g3 {[%clk 0:01:02.8]} 38. Qg4+ {[%clk 0:01:30.7]} 38... Qxg4 {[%clk
0:01:02.5]} 39. hxg4+ {[%clk 0:01:30.8]} 39... Kg5 {[%clk 0:01:00.2]} 40. Bxg3
{[%clk 0:01:30.1]} 40... hxg3 {[%clk 0:01:00.1]} 41. Kg2 {[%clk 0:01:30.3]} 1-0

[Event "*** Titled Tuesday Blitz"]
[Site "Chess.com"]
[Date "2020.05.12"]
[Round "7"]
[White "L_lorenzo"]
[Black "Al_Shima"]
[Result "0-1"]
[WhiteElo "2222"]
[BlackElo "2423"]
[TimeControl "180+1"]
[EndTime "11:15:14 PDT"]
[Termination "Al_Shima won by resignation"]

1. d4 {[%clk 0:02:59.5]} 1... b5 {[%clk 0:02:57.5]} 2. Nf3 {[%clk 0:02:53.3]}
2... Bb7 {[%clk 0:02:57.3]} 3. c3 {[%clk 0:02:52]} 3... a6 {[%clk 0:02:55]} 4.
Nbd2 {[%clk 0:02:51.5]} 4... f5 {[%clk 0:02:54.6]} 5. Qc2 {[%clk 0:02:37.1]}
5... e6 {[%clk 0:02:54.1]} 6. e4 {[%clk 0:02:36]} 6... fxe4 {[%clk 0:02:53.5]}
7. Nxe4 {[%clk 0:02:36.1]} 7... Nf6 {[%clk 0:02:53.9]} 8. Ng3 {[%clk 0:02:31.8]}
8... Nc6 {[%clk 0:02:44.5]} 9. Bd3 {[%clk 0:02:31.9]} 9... Ne7 {[%clk
0:02:41.4]} 10. Ne5 {[%clk 0:02:30.6]} 10... Bxg2 {[%clk 0:02:08]} 11. Rg1
{[%clk 0:02:30.1]} 11... Bh3 {[%clk 0:02:02.3]} 12. Ne4 {[%clk 0:02:22.7]} 12...
Bf5 {[%clk 0:01:48.4]} 13. Ng5 {[%clk 0:02:21.1]} 13... Qb8 {[%clk 0:01:37.6]}
14. Ngf7 {[%clk 0:01:52]} 14... Rg8 {[%clk 0:01:36.5]} 15. Qe2 {[%clk 0:01:31]}
15... Bxd3 {[%clk 0:01:13.3]} 16. Qxd3 {[%clk 0:01:28.7]} 16... d6 {[%clk
0:01:13.2]} 17. Ng5 {[%clk 0:01:14]} 17... dxe5 {[%clk 0:01:05.7]} 18. dxe5
{[%clk 0:01:12.7]} 18... Nd7 {[%clk 0:00:50.3]} 19. Nxe6 {[%clk 0:01:11.6]}
19... Nxe5 {[%clk 0:00:42.2]} 20. Qd5 {[%clk 0:01:02.5]} 20... c6 {[%clk
0:00:38.2]} 21. Qg2 {[%clk 0:00:56.1]} 21... Qd6 {[%clk 0:00:35.9]} 22. Nd4
{[%clk 0:00:55.4]} 22... O-O-O {[%clk 0:00:31.9]} 23. Bf4 {[%clk 0:00:49.7]}
23... Nd3+ {[%clk 0:00:27.9]} 0-1

[Event "*** Titled Tuesday Blitz"]
[Site "Chess.com"]
[Date "2020.05.12"]
[Round "7"]
[White "SergioGarciaFuentes"]
[Black "Gerodot71"]
[Result "0-1"]
[WhiteElo "2163"]
[BlackElo "2418"]
[TimeControl "180+1"]
[EndTime "11:15:16 PDT"]
[Termination "Gerodot71 won by resignation"]

1. Nf3 {[%clk 0:03:00.9]} 1... Nf6 {[%clk 0:02:59.8]} 2. g3 {[%clk 0:03:00.5]}
2... d5 {[%clk 0:02:58.8]} 3. d4 {[%clk 0:02:59.7]} 3... Bf5 {[%clk 0:02:59.2]}
4. Bg2 {[%clk 0:02:58.3]} 4... Nbd7 {[%clk 0:02:59.8]} 5. O-O {[%clk 0:02:53.2]}
5... h6 {[%clk 0:03:00.3]} 6. c4 {[%clk 0:02:41.5]} 6... c6 {[%clk 0:02:59]} 7.
Nbd2 {[%clk 0:02:40.4]} 7... e6 {[%clk 0:02:58.7]} 8. b3 {[%clk 0:02:39.4]} 8...
Be7 {[%clk 0:02:58.1]} 9. Bb2 {[%clk 0:02:39.3]} 9... O-O {[%clk 0:02:58.4]} 10.
Re1 {[%clk 0:02:32.4]} 10... Re8 {[%clk 0:02:57.6]} 11. Rc1 {[%clk 0:02:30.3]}
11... Rc8 {[%clk 0:02:56.7]} 12. Ne5 {[%clk 0:01:34.7]} 12... a6 {[%clk
0:02:48.4]} 13. h4 {[%clk 0:01:00.8]} 13... Bf8 {[%clk 0:02:40.4]} 14. e3 {[%clk
0:00:56.2]} 14... Qe7 {[%clk 0:02:30.3]} 15. f4 {[%clk 0:00:32.5]} 15... h5
{[%clk 0:02:18.1]} 16. Ndf3 {[%clk 0:00:29.4]} 16... Ng4 {[%clk 0:02:14.3]} 17.
Nxd7 {[%clk 0:00:25.8]} 17... Qxd7 {[%clk 0:02:15.2]} 18. Ne5 {[%clk 0:00:25.9]}
18... Qe7 {[%clk 0:02:15.4]} 19. Qd2 {[%clk 0:00:20.1]} 19... Nf6 {[%clk
0:02:13.1]} 20. Bf3 {[%clk 0:00:19.6]} 20... Ne4 {[%clk 0:02:12.2]} 21. Qg2
{[%clk 0:00:18.2]} 21... g6 {[%clk 0:02:10.8]} 22. Kh2 {[%clk 0:00:17.5]} 22...
Nf6 {[%clk 0:02:09.8]} 23. Rh1 {[%clk 0:00:17.2]} 23... Bg7 {[%clk 0:02:08.4]}
24. Kg1 {[%clk 0:00:17.2]} 24... Be4 {[%clk 0:02:08.6]} 25. g4 {[%clk
0:00:16.7]} 25... hxg4 {[%clk 0:02:07.3]} 26. Nxg4 {[%clk 0:00:15.7]} 26... Bxf3
{[%clk 0:01:56.1]} 27. Qxf3 {[%clk 0:00:15.9]} 27... Nh5 {[%clk 0:01:56.3]} 28.
Kf2 {[%clk 0:00:14.9]} 28... Qb4 {[%clk 0:01:54.9]} 29. Qe2 {[%clk 0:00:14.4]}
29... c5 {[%clk 0:01:54.6]} 30. dxc5 {[%clk 0:00:13]} 30... Bxb2 {[%clk
0:01:53.8]} 31. Qxb2 {[%clk 0:00:13.9]} 31... Rxc5 {[%clk 0:01:51.5]} 32. Rhg1
{[%clk 0:00:14]} 32... dxc4 {[%clk 0:01:48]} 33. Rc2 {[%clk 0:00:13.2]} 33...
cxb3 {[%clk 0:01:43.4]} 34. Rxc5 {[%clk 0:00:13.1]} 34... Qxc5 {[%clk
0:01:44.3]} 35. axb3 {[%clk 0:00:13.1]} 35... Rc8 {[%clk 0:01:43.6]} 36. Nf6+
{[%clk 0:00:13.2]} 36... Nxf6 {[%clk 0:01:42]} 37. Qxf6 {[%clk 0:00:13.8]} 37...
Qc2+ {[%clk 0:01:41.7]} 38. Kf3 {[%clk 0:00:14]} 38... Qc6+ {[%clk 0:01:41.2]}
39. Kf2 {[%clk 0:00:14.1]} 39... Qe4 {[%clk 0:01:39.5]} 0-1

[Event "*** Titled Tuesday Blitz"]
[Site "Chess.com"]
[Date "2020.05.12"]
[Round "7"]
[White "Parhamov"]
[Black "ElGasanov"]
[Result "1-0"]
[WhiteElo "3008"]
[BlackElo "2735"]
[TimeControl "180+1"]
[EndTime "11:15:19 PDT"]
[Termination "Parhamov won by resignation"]

1. e4 {[%clk 0:03:00.9]} 1... c5 {[%clk 0:02:59.4]} 2. Nf3 {[%clk 0:03:01.3]}
2... Nc6 {[%clk 0:02:59.5]} 3. d4 {[%clk 0:03:01.5]} 3... cxd4 {[%clk
0:02:59.8]} 4. Nxd4 {[%clk 0:03:02.4]} 4... Nf6 {[%clk 0:03:00.1]} 5. Nc3 {[%clk
0:03:02.1]} 5... g6 {[%clk 0:03:00.4]} 6. h4 {[%clk 0:02:59.1]} 6... Bg7 {[%clk
0:02:54.9]} 7. Be3 {[%clk 0:02:56.6]} 7... O-O {[%clk 0:02:38.1]} 8. h5 {[%clk
0:02:55.5]} 8... d5 {[%clk 0:02:37.1]} 9. hxg6 {[%clk 0:02:53.6]} 9... hxg6
{[%clk 0:02:36.6]} 10. exd5 {[%clk 0:02:18.9]} 10... Nxd5 {[%clk 0:02:31.3]} 11.
Nxc6 {[%clk 0:02:19]} 11... bxc6 {[%clk 0:02:29.9]} 12. Nxd5 {[%clk 0:02:18.9]}
12... cxd5 {[%clk 0:02:19.7]} 13. c3 {[%clk 0:02:18.7]} 13... e5 {[%clk
0:01:59.6]} 14. Qc1 {[%clk 0:02:13]} 14... d4 {[%clk 0:01:56.5]} 15. Bh6 {[%clk
0:02:13.1]} 15... dxc3 {[%clk 0:01:53]} 16. bxc3 {[%clk 0:02:11.3]} 16... Qf6
{[%clk 0:01:46.7]} 17. Bg5 {[%clk 0:02:02]} 17... Qf5 {[%clk 0:01:38.9]} 18. Be2
{[%clk 0:01:58.2]} 18... Rb8 {[%clk 0:01:27.8]} 19. Bh6 {[%clk 0:01:53.3]} 19...
Qf6 {[%clk 0:01:10.3]} 20. Qe3 {[%clk 0:01:51.9]} 20... Rb2 {[%clk 0:01:06.4]}
21. Bxg7 {[%clk 0:01:48.5]} 21... Qxg7 {[%clk 0:01:05.6]} 22. Bc4 {[%clk
0:01:48.7]} 22... Rd8 {[%clk 0:00:56.2]} 23. O-O {[%clk 0:01:46.4]} 23... Qf6
{[%clk 0:00:48.2]} 24. Rab1 {[%clk 0:01:45.5]} 24... Rdd2 {[%clk 0:00:45.4]} 25.
Qxa7 {[%clk 0:01:41]} 25... Bf5 {[%clk 0:00:36.4]} 26. Rxb2 {[%clk 0:01:38.1]}
26... Rxb2 {[%clk 0:00:37.3]} 27. Rd1 {[%clk 0:01:38.4]} 27... Be6 {[%clk
0:00:35.6]} 28. Bxe6 {[%clk 0:01:36.9]} 28... Qxe6 {[%clk 0:00:35.9]} 29. a4
{[%clk 0:01:35.5]} 29... Qb3 {[%clk 0:00:32.8]} 30. Rd8+ {[%clk 0:01:24.4]}
30... Kg7 {[%clk 0:00:33.2]} 31. Qe7 {[%clk 0:01:23.8]} 31... Rb1+ {[%clk
0:00:07.6]} 32. Kh2 {[%clk 0:01:23.5]} 1-0